bitfinex-derivatives/quotes_BTCF0:USTF0_20260221
["timestamp","ask_amount","ask_price","bid_price","bid_amount"]
[1771708176663,0.014638,68334.0,68321.0,0.014641]
[1771708176664,0.014638,68333.0,68323.0,0.01464]
[1771708177269,0.014638,68334.0,68323.0,0.01464]
[1771708177469,0.014638,68333.0,68323.0,0.01464]
[1771708177770,0.014638,68333.0,68324.0,0.01464]
[1771708180373,0.014638,68333.0,68325.0,0.01464]
[1771708180567,0.014638,68334.0,68325.0,0.01464]
[1771708182175,0.029275,68336.0,68327.0,0.014639]
[1771708182373,0.014637,68336.0,68327.0,0.014639]
[1771708187875,0.014635,68347.0,68335.0,0.029276]
[1771708188074,0.014636,68345.0,68337.0,0.06079526]
[1771708188377,0.014635,68346.0,68337.0,0.06079526]
[1771708189073,0.014633,68357.0,68341.0,0.014636]
[1771708189276,0.014633,68356.0,68347.0,0.06079526]
[1771708189477,0.014633,68357.0,68344.0,0.014636]
[1771708189478,0.014633,68355.0,68344.0,0.014636]
[1771708189981,0.014633,68356.0,68344.0,0.014636]
[1771708190374,0.014633,68355.0,68344.0,0.014636]
[1771708190775,0.014634,68354.0,68344.0,0.014636]
[1771708190977,0.014634,68353.0,68342.0,0.014636]
[1771708191776,0.014633,68355.0,68344.0,0.014636]
[1771708192981,0.014633,68356.0,68345.0,0.014635]
[1771708193173,0.014633,68356.0,68341.0,0.014636]
[1771708193174,0.014633,68357.0,68341.0,0.014636]
[1771708193380,0.014633,68358.0,68347.0,0.014635]
[1771708194180,0.014633,68359.0,68348.0,0.014635]
[1771708194383,0.014633,68358.0,68347.0,0.014635]
[1771708195982,0.014633,68358.0,68337.0,0.014637]
[1771708195983,0.87948425,68406.0,68349.0,0.42156963]
[1771708196281,0.06079526,68420.0,68349.0,0.42156963]
[1771708196282,0.06079526,68390.0,68380.0,0.014628]
[1771708196483,0.06079526,68390.0,68381.0,0.01468]
[1771708196777,0.87948425,68393.0,68382.0,0.34194328]
[1771708196975,0.89411025,68392.0,68383.0,0.32726328]
[1771708197171,0.014626,68391.0,68382.0,0.01468]
[1771708197983,0.89411025,68392.0,68382.0,0.01468]
[1771708199284,0.89411025,68392.0,68383.0,0.32931272]
[1771708199485,0.89411025,68392.0,68384.0,0.32931272]
[1771708199687,0.89411025,68392.0,68385.0,0.32931272]
[1771708199886,0.87948425,68386.0,68375.0,0.17471175]
[1771708200180,0.014628,68382.0,68375.0,0.17471175]
[1771708200381,0.014628,68380.0,68372.0,0.17471175]
[1771708200576,0.014628,68381.0,68370.0,0.41600009]
[1771708200778,0.014628,68381.0,68370.0,0.24128834]
[1771708201089,0.014628,68382.0,68371.0,0.01463]
[1771708201279,0.87948425,68383.0,68371.0,0.01463]
[1771708201480,0.014628,68381.0,68370.0,0.01463]
[1771708201679,0.89411125,68383.0,68371.0,0.01463]
[1771708201875,0.014628,68382.0,68370.0,0.01463]
[1771708202080,0.014628,68381.0,68370.0,0.01463]
[1771708203188,0.014628,68381.0,68371.0,0.01463]
[1771708203586,0.014628,68380.0,68368.0,0.01463]
[1771708203787,0.014628,68380.0,68369.0,0.01463]
[1771708203988,0.014628,68380.0,68370.0,0.01463]
[1771708204188,0.014628,68381.0,68369.0,0.01463]
[1771708204687,0.014628,68380.0,68370.0,0.01463]
[1771708205091,0.014628,68381.0,68371.0,0.01463]
[1771708208594,0.014628,68381.0,68372.0,0.01463]
[1771708209091,0.90873925,68383.0,68372.0,0.01463]
[1771708210693,0.89411125,68383.0,68373.0,0.01463]
[1771708211694,0.014628,68382.0,68373.0,0.01463]
[1771708211892,0.01468,68381.0,68374.0,0.32935003]
[1771708212193,0.01468,68381.0,68375.0,0.32935003]
[1771708212391,0.01468,68381.0,68376.0,0.32935003]
[1771708212592,0.01468,68381.0,68377.0,0.32935003]
[1771708212794,0.01468,68381.0,68378.0,0.32935003]
[1771708212998,0.01468,68381.0,68379.0,0.32935003]
[1771708213198,0.01468,68381.0,68373.0,0.18934175]
[1771708213496,0.029308,68381.0,68374.0,0.06268297]
[1771708213697,0.01468,68381.0,68373.0,0.17471175]
[1771708213888,0.01468,68381.0,68371.0,0.01463]
[1771708213889,0.01468,68381.0,68372.0,0.01463]
[1771708214196,0.01468,68381.0,68372.0,0.17471175]
[1771708214395,0.01468,68381.0,68372.0,0.18934175]
[1771708214898,0.01468,68381.0,68379.0,0.001]
[1771708215296,0.029308,68381.0,68373.0,0.17471175]
[1771708215994,0.01468,68381.0,68373.0,0.17471175]
[1771708216190,0.01468,68381.0,68374.0,0.17471175]
[1771708217194,0.01468,68381.0,68376.0,0.17471175]
[1771708217799,0.01468,68381.0,68375.0,0.17471175]
[1771708218303,0.01468,68380.0,68376.0,0.17471175]
[1771708218505,0.01468,68379.0,68376.0,0.17471175]
[1771708218695,0.89411125,68383.0,68376.0,0.17471175]
[1771708218696,0.01468,68378.0,68376.0,0.17471175]
[1771708218897,0.01468,68377.0,68376.0,0.17471175]
[1771708219190,0.01468,68377.0,68375.0,0.17471175]
[1771708219393,0.01468,68376.0,68375.0,0.17471175]
[1771708219702,1e-08,68376.0,68375.0,0.17471175]
[1771708219896,1e-08,68376.0,68374.0,0.17471175]
[1771708221502,0.01468,68375.0,68374.0,0.17471175]
[1771708222194,0.01468,68375.0,68373.0,0.014629]
[1771708222404,0.01468,68374.0,68373.0,0.014629]
[1771708223903,0.94480182,68374.0,68362.0,0.3282146]
[1771708224207,0.01463,68370.0,68361.0,0.014632]
[1771708224505,0.02931,68369.0,68358.0,0.014633]
[1771708224695,0.014631,68368.0,68356.0,0.014633]
[1771708224892,0.014632,68364.0,68355.0,0.014633]
[1771708225095,0.029312,68363.0,68355.0,0.014633]
[1771708225402,0.029312,68363.0,68354.0,0.014634]
[1771708225705,0.01468,68363.0,68355.0,0.29466064]
[1771708225904,0.01468,68363.0,68356.0,0.30929364]
[1771708226103,0.01468,68363.0,68357.0,0.29466064]
[1771708226404,0.01468,68363.0,68358.0,0.29466064]
[1771708226605,0.01468,68363.0,68359.0,0.29466064]
[1771708226806,0.01468,68363.0,68360.0,0.29466064]
[1771708226997,0.01468,68363.0,68361.0,0.29466064]
[1771708227198,0.01468,68363.0,68362.0,0.29466064]
[1771708228408,0.01468,68363.0,68362.0,0.29566064]
[1771708229410,0.01468,68363.0,68357.0,0.014633]
[1771708233212,0.01468,68363.0,68355.0,0.014633]
[1771708233810,0.014632,68362.0,68342.0,0.014636]
[1771708234012,0.014632,68361.0,68350.0,0.014634]
[1771708234311,0.014632,68361.0,68342.0,0.014636]
[1771708234312,0.014634,68354.0,68342.0,0.014636]
[1771708234511,0.029314,68353.0,68341.0,0.014636]
[1771708234701,0.029314,68352.0,68341.0,0.014636]
[1771708234903,0.029314,68352.0,68342.0,0.014636]
[1771708235507,0.00011858,68351.0,68342.0,0.014636]
[1771708237615,0.01475258,68351.0,68342.0,0.014636]
[1771708238618,0.014635,68349.0,68341.0,0.014636]
[1771708238821,0.01468,68348.0,68340.0,0.014637]
[1771708239020,0.01468,68348.0,68341.0,0.014636]
[1771708239221,0.01468,68348.0,68340.0,0.014637]
[1771708239720,0.01468,68348.0,68341.0,0.014636]
[1771708241420,0.029315,68348.0,68341.0,0.014636]
[1771708241616,0.01468,68348.0,68341.0,0.014636]
[1771708242317,0.029315,68348.0,68341.0,0.014636]
[1771708244530,0.01468,68348.0,68334.0,0.014638]
[1771708244719,0.014636,68344.0,68335.0,0.014638]
[1771708244920,0.01468,68343.0,68336.0,0.014637]
[1771708245115,0.01475458,68342.0,68331.0,0.00073173]
[1771708245422,0.01475458,68342.0,68327.0,0.014639]
[1771708245423,0.014637,68340.0,68327.0,0.014639]
[1771708245619,0.014637,68340.0,68324.0,0.97512178]
[1771708245620,0.01468,68339.0,68329.0,0.014639]
[1771708245819,0.014637,68337.0,68329.0,0.014639]
[1771708246322,0.01468,68339.0,68327.0,0.014639]
[1771708246524,0.014638,68336.0,68328.0,0.014639]
[1771708246723,0.01468,68335.0,68328.0,0.014639]
[1771708248024,0.01468,68335.0,68328.0,0.029278]
[1771708248223,0.01468,68335.0,68328.0,0.014639]
[1771708248722,0.029318,68335.0,68327.0,0.014639]
[1771708248922,0.01468,68335.0,68328.0,0.014639]
[1771708249225,0.01468,68335.0,68329.0,0.014639]
[1771708249923,0.01468,68335.0,68329.0,0.029278]
[1771708250124,0.01468,68335.0,68330.0,0.014639]
[1771708253125,0.01468,68335.0,68327.0,0.014639]
[1771708253334,0.00011858,68334.0,68327.0,0.014639]
[1771708253530,0.00011858,68334.0,68317.0,0.97512178]
[1771708253531,0.014638,68332.0,68310.0,0.03696394]
[1771708253734,0.014639,68328.0,68320.0,0.014641]
[1771708254030,0.01479858,68327.0,68320.0,0.014641]
[1771708254730,0.02943758,68327.0,68320.0,0.014641]
[1771708255138,0.02943758,68327.0,68318.0,0.029282]
[1771708255435,0.02943758,68327.0,68319.0,0.014641]
[1771708256336,0.02943758,68327.0,68320.0,0.014641]
[1771708256637,0.01479858,68327.0,68320.0,0.014641]
[1771708257141,0.02943758,68327.0,68320.0,0.014641]
[1771708257331,0.02943758,68327.0,68319.0,0.014641]
[1771708257532,0.01464,68325.0,68317.0,0.014641]
[1771708257734,0.01464,68324.0,68317.0,0.014641]
[1771708257936,0.01468,68323.0,68317.0,0.014641]
[1771708258136,0.01468,68323.0,68318.0,0.014641]
[1771708260841,0.014638,68335.0,68327.0,0.014639]
[1771708261045,0.029318,68334.0,68326.0,0.01464]
[1771708261348,0.01468,68333.0,68326.0,0.01464]
[1771708268850,0.014638,68332.0,68323.0,0.01464]
[1771708269251,0.014638,68332.0,68324.0,0.01464]
[1771708269853,0.014639,68330.0,68321.0,0.014641]
[1771708270051,0.029319,68329.0,68321.0,0.014641]
[1771708270251,0.01468,68328.0,68321.0,0.014641]
[1771708272653,0.01468,68328.0,68322.0,0.01464]
[1771708274954,0.01468,68328.0,68321.0,0.014641]
[1771708280454,0.01468,68328.0,68310.0,0.32794604]
[1771708280664,0.01464,68324.0,68316.0,0.014642]
[1771708280857,0.01468,68323.0,68316.0,0.014642]
[1771708281157,0.01468,68323.0,68317.0,0.014641]
[1771708285760,0.014638,68332.0,68313.0,0.96046577]
[1771708285952,0.014639,68330.0,68323.0,0.01464]
[1771708286150,0.014639,68330.0,68320.0,0.06080682]
[1771708286363,0.014639,68327.0,68320.0,0.07544782]
[1771708286565,0.01468,68326.0,68320.0,0.014641]
[1771708288164,0.014641,68318.0,68311.0,0.014643]
[1771708288366,0.01464,68323.0,68310.0,0.06080682]
[1771708288367,0.01468,68317.0,68312.0,0.014643]
[1771708288661,0.01468,68316.0,68312.0,0.014643]
[1771708288867,0.01468,68315.0,68312.0,0.014643]
[1771708289569,0.01464,68323.0,68308.0,0.014643]
[1771708289570,0.01468,68314.0,68308.0,0.95784045]
[1771708289771,0.01464,68323.0,68315.0,0.014642]
[1771708289961,0.01468,68322.0,68315.0,0.014642]
[1771708290164,0.01468,68322.0,68316.0,0.014642]
[1771708291671,0.029321,68322.0,68316.0,0.014642]
[1771708293766,0.014642,68318.0,68311.0,0.029286]
[1771708294069,0.01468,68317.0,68310.0,0.06080682]
[1771708294257,0.01468,68317.0,68311.0,0.014643]
[1771708296763,0.01468,68317.0,68312.0,0.014643]
[1771708297470,0.01468,68317.0,68311.0,0.014643]
[1771708298673,0.014641,68318.0,68311.0,0.014643]
[1771708298870,0.01468,68316.0,68311.0,0.014643]
[1771708299070,0.01468,68316.0,68312.0,0.014643]
[1771708300571,0.029322,68316.0,68306.0,0.014644]
[1771708300775,0.014642,68315.0,68308.0,0.014643]
[1771708301071,0.014642,68314.0,68308.0,0.014643]
[1771708301273,0.01468,68313.0,68307.0,0.014644]
[1771708301966,0.014641,68320.0,68310.0,0.014643]
[1771708302167,0.01468,68319.0,68310.0,0.014643]
[1771708303674,0.014641,68318.0,68311.0,0.014643]
[1771708304874,0.029283,68318.0,68311.0,0.014643]
[1771708305771,0.014641,68321.0,68314.0,0.014642]
[1771708306072,0.014641,68321.0,68307.0,0.93427587]
[1771708306073,0.014642,68317.0,68309.0,0.014643]
[1771708306273,0.014642,68317.0,68309.0,0.029286]
[1771708306769,0.014641,68319.0,68311.0,0.014643]
[1771708307075,0.01468,68318.0,68311.0,0.014643]
[1771708307872,0.014641,68321.0,68313.0,0.014642]
[1771708308072,0.014641,68321.0,68315.0,0.00088]
[1771708308273,0.014641,68321.0,68313.0,0.014642]
[1771708308571,0.014641,68321.0,68312.0,0.014643]
[1771708308768,0.014641,68321.0,68309.0,0.014643]
[1771708309072,0.014641,68318.0,68309.0,0.014643]
[1771708309578,0.014641,68319.0,68311.0,0.014643]
[1771708313878,0.014641,68319.0,68300.0,0.06080682]
[1771708313879,0.9411072,68318.0,68285.0,0.52067286]
[1771708314079,0.014646,68297.0,68285.0,0.014648]
[1771708314272,0.1017036,68319.0,68285.0,0.52067286]
[1771708314273,0.19700331,68296.0,68285.0,0.52067286]
[1771708314474,0.014645,68300.0,68292.0,0.014647]
[1771708314671,0.014645,68301.0,68291.0,0.014647]
[1771708314983,0.014646,68298.0,68292.0,0.014647]
[1771708315170,0.014646,68296.0,68290.0,1.00016364]
[1771708316983,0.014646,68297.0,68290.0,1.00016364]
[1771708317192,0.014646,68298.0,68290.0,1.00016364]
[1771708318184,0.014646,68296.0,68290.0,0.98551664]
[1771708318587,0.014646,68296.0,68290.0,1.31538875]
[1771708318787,0.014646,68298.0,68290.0,1.31538875]
[1771708318989,0.014646,68296.0,68290.0,0.98551664]
[1771708319290,0.014646,68296.0,68290.0,1.00016364]
[1771708319484,0.014646,68296.0,68290.0,1.33003575]
[1771708319788,0.014646,68298.0,68290.0,1.33003575]
[1771708319991,0.3443702,68297.0,68290.0,1.00016364]
[1771708320287,0.014646,68297.0,68290.0,1.00016364]
[1771708320488,0.3297242,68296.0,68290.0,1.00016364]
[1771708320788,0.3297242,68295.0,68290.0,1.33003575]
[1771708321090,0.014646,68297.0,68290.0,1.85070861]
[1771708321289,0.014646,68298.0,68290.0,1.85070861]
[1771708321589,0.014646,68298.0,68290.0,1.5208365]
[1771708321986,0.014646,68298.0,68290.0,1.00016364]
[1771708322186,0.00012408,68300.0,68292.0,1.02159072]
[1771708322584,0.014646,68297.0,68292.0,1.02159072]
[1771708322986,0.00012408,68300.0,68293.0,0.32987211]
[1771708323189,0.00012408,68300.0,68292.0,1.02159072]
[1771708323598,0.014646,68297.0,68292.0,1.02159072]
[1771708324092,0.014646,68297.0,68293.0,0.32987211]
[1771708324596,0.06080682,68321.0,68296.0,0.28581403]
[1771708324795,0.60346174,68321.0,68294.0,1.52881671]
[1771708324990,0.014645,68300.0,68294.0,1.52881671]
[1771708325194,0.014643,68309.0,68294.0,1.52881671]
[1771708325490,0.014644,68307.0,68299.0,0.06080682]
[1771708325685,0.014643,68309.0,68299.0,0.06080682]
[1771708325686,0.014644,68305.0,68299.0,1.06879439]
[1771708325890,0.25099994,68314.0,68283.0,1.02263657]
[1771708325891,0.014647,68290.0,68283.0,1.02263657]
[1771708326095,0.014648,68289.0,68283.0,1.00798757]
[1771708326395,0.014646,68294.0,68283.0,1.02263657]
[1771708326589,0.014647,68292.0,68283.0,1.02263657]
[1771708326894,0.014647,68290.0,68283.0,1.02263657]
[1771708327592,0.014647,68290.0,68289.0,0.28581403]
[1771708327782,0.014646,68294.0,68289.0,0.28581403]
[1771708327983,0.014647,68291.0,68283.0,1.02263657]
[1771708328590,0.014647,68291.0,68290.0,0.28581403]
[1771708328790,0.014646,68294.0,68290.0,0.28581403]
[1771708328995,0.014647,68293.0,68292.0,3e-08]
[1771708329196,0.014647,68293.0,68284.0,1.09313635]
[1771708329498,0.014646,68295.0,68284.0,1.09313635]
[1771708329697,0.014647,68291.0,68284.0,1.09313635]
[1771708333093,0.31977758,68290.0,68284.0,1.09313635]
[1771708333284,0.31977758,68289.0,68284.0,1.09313635]
[1771708333482,0.014647,68291.0,68284.0,1.09313635]
[1771708333690,0.33444091,68290.0,68284.0,1.09313635]
[1771708333896,0.31979391,68289.0,68284.0,1.09313635]
[1771708334090,0.014647,68290.0,68284.0,1.09313635]
[1771708334293,0.06734782,68289.0,68284.0,1.09313635]
[1771708334597,0.014647,68290.0,68284.0,1.09313635]
[1771708336096,0.014647,68293.0,68285.0,0.014648]
[1771708337098,0.014647,68291.0,68285.0,0.014648]
[1771708338596,0.014647,68291.0,68285.0,1.14493501]
[1771708339399,0.029294,68293.0,68286.0,1.14493501]
[1771708339894,0.014647,68293.0,68286.0,1.14493501]
[1771708340093,0.029294,68293.0,68286.0,1.14493501]
[1771708340795,0.014647,68292.0,68286.0,1.14493501]
[1771708341595,0.014647,68292.0,68286.0,0.92509446]
[1771708341797,0.014647,68292.0,68286.0,0.93974246]
[1771708344198,0.014647,68292.0,68286.0,0.92509446]
[1771708345101,0.014647,68292.0,68286.0,0.59533328]
[1771708345594,0.014646,68294.0,68286.0,0.59533328]
[1771708345800,0.014646,68295.0,68286.0,0.59533328]
[1771708346201,0.014647,68291.0,68286.0,0.59533328]
[1771708346389,0.014647,68292.0,68286.0,0.60998128]
[1771708346604,0.014647,68293.0,68286.0,0.59533328]
[1771708347802,0.014647,68292.0,68286.0,0.59533328]
[1771708348100,0.014647,68291.0,68286.0,0.59533328]
[1771708348606,0.014646,68298.0,68291.0,1.13028701]
[1771708348795,0.014645,68300.0,68291.0,1.13028701]
[1771708349099,0.014646,68297.0,68291.0,1.13028701]
[1771708349295,0.014646,68298.0,68291.0,1.13028701]
[1771708349501,0.014646,68296.0,68291.0,1.13028701]
[1771708349896,0.014645,68303.0,68291.0,1.14493401]
[1771708350101,0.014645,68300.0,68291.0,1.14493401]
[1771708350503,0.014646,68298.0,68291.0,1.14493401]
[1771708351497,0.26564194,68314.0,68295.0,0.014646]
[1771708351498,0.014642,68313.0,68295.0,0.014646]
[1771708351698,1e-06,68305.0,68297.0,0.014646]
[1771708351894,0.014643,68309.0,68297.0,0.014646]
[1771708352100,0.014644,68304.0,68297.0,0.014646]
[1771708352400,0.014644,68305.0,68297.0,0.014646]
[1771708352802,0.014644,68307.0,68299.0,0.014645]
[1771708354901,0.014644,68306.0,68299.0,0.014645]
[1771708357008,0.014644,68307.0,68299.0,0.014645]
[1771708358312,0.014643,68308.0,68298.0,0.014645]
[1771708358606,0.014644,68306.0,68298.0,0.014645]
[1771708358800,0.24689643,68305.0,68298.0,0.014645]
[1771708359116,0.24689643,68304.0,68299.0,0.014645]
[1771708359304,0.24689643,68303.0,68297.0,0.014646]
[1771708359607,0.014643,68311.0,68300.0,1.11345948]
[1771708359802,0.24688451,68310.0,68300.0,1.11345948]
[1771708360003,0.24688451,68309.0,68300.0,1.11345948]
[1771708360206,0.24688451,68308.0,68300.0,1.11345948]
[1771708360508,0.24688451,68307.0,68300.0,1.11345948]
[1771708360809,0.24688451,68306.0,68300.0,1.11345948]
[1771708361006,0.24688451,68305.0,68300.0,1.11345948]
[1771708361206,0.014644,68307.0,68300.0,1.09881448]
[1771708361398,0.014644,68305.0,68300.0,1.09881448]
[1771708364014,0.014644,68306.0,68300.0,1.09881448]
[1771708364408,0.014643,68311.0,68302.0,1.11345948]
[1771708364612,0.24678444,68310.0,68302.0,1.11345948]
[1771708364811,0.24678444,68310.0,68293.0,0.01950934]
[1771708364812,0.014645,68304.0,68291.0,0.014647]
[1771708365109,0.014645,68303.0,68295.0,0.014646]
[1771708365717,0.014645,68302.0,68295.0,0.014646]
[1771708366418,0.014645,68301.0,68295.0,0.014646]
[1771708369116,0.014645,68301.0,68291.0,0.014647]
[1771708369117,0.014645,68303.0,68297.0,0.014646]
[1771708369621,0.014645,68302.0,68297.0,0.014646]
[1771708371118,0.014643,68312.0,68302.0,0.014645]
[1771708371324,0.014642,68313.0,68301.0,0.014645]
[1771708371325,0.014644,68307.0,68301.0,0.014645]
[1771708371523,0.26142353,68306.0,68300.0,0.014645]
[1771708371719,0.014644,68306.0,68300.0,0.014645]
[1771708372024,0.014644,68305.0,68299.0,0.014645]
[1771708373828,0.014644,68306.0,68300.0,0.014645]
[1771708375027,0.014644,68307.0,68300.0,0.014645]
[1771708375223,0.24691466,68306.0,68300.0,0.014645]
[1771708375423,0.24691466,68305.0,68300.0,0.014645]
[1771708375623,0.014644,68307.0,68300.0,0.014645]
[1771708375933,0.24691466,68306.0,68300.0,0.014645]
[1771708376132,0.24691466,68305.0,68300.0,0.014645]
[1771708376331,0.014644,68307.0,68300.0,0.014645]
[1771708376528,0.24697525,68306.0,68300.0,0.014645]
[1771708376731,0.15221731,68305.0,68301.0,0.014645]
[1771708376931,0.014643,68308.0,68301.0,0.014645]
[1771708378635,0.029286,68310.0,68302.0,0.014645]
[1771708378837,0.014642,68313.0,68305.0,0.014644]
[1771708379038,0.014643,68312.0,68305.0,0.014644]
[1771708379238,0.014642,68313.0,68305.0,0.029288]
[1771708379837,0.014642,68313.0,68305.0,0.014644]
[1771708380243,0.029285,68313.0,68305.0,0.014644]
[1771708381031,0.014643,68312.0,68304.0,0.014644]
[1771708381438,0.014643,68311.0,68304.0,0.014644]
[1771708382144,0.014643,68312.0,68304.0,0.014644]
[1771708382538,0.014643,68311.0,68304.0,0.014644]
[1771708382743,0.014643,68310.0,68302.0,0.014645]
[1771708382951,0.014644,68308.0,68300.0,0.014645]
[1771708384545,0.014644,68308.0,68301.0,0.014645]
[1771708389043,0.014644,68308.0,68302.0,0.00096]
[1771708389245,0.014644,68308.0,68301.0,0.014645]
[1771708390044,0.23540793,68307.0,68301.0,0.014645]
[1771708390245,0.014644,68308.0,68300.0,0.014645]
[1771708390451,0.23540783,68307.0,68300.0,0.014645]
[1771708390653,0.014644,68308.0,68300.0,0.014645]
[1771708391054,0.014643,68309.0,68301.0,0.014645]
[1771708391354,0.23542214,68308.0,68301.0,0.014645]
[1771708391654,0.014643,68309.0,68301.0,0.014645]
[1771708391855,0.23542211,68308.0,68301.0,0.014645]
[1771708392054,0.014643,68309.0,68302.0,0.00096]
[1771708392253,0.23544458,68308.0,68301.0,0.014645]
[1771708392458,0.014643,68309.0,68301.0,0.014645]
[1771708392656,0.23544437,68308.0,68301.0,0.014645]
[1771708392857,0.014643,68309.0,68301.0,0.014645]
[1771708393060,0.23544437,68308.0,68301.0,0.014645]
[1771708393360,0.014643,68309.0,68301.0,0.014645]
[1771708393559,0.23544526,68308.0,68301.0,0.014645]
[1771708393754,0.014643,68309.0,68301.0,0.014645]
[1771708393949,0.23544411,68308.0,68301.0,0.014645]
[1771708394150,0.014643,68309.0,68301.0,0.014645]
[1771708394347,0.23544464,68308.0,68301.0,0.014645]
[1771708394555,0.014643,68309.0,68301.0,0.014645]
[1771708394858,0.23544464,68308.0,68301.0,0.014645]
[1771708395160,0.014643,68309.0,68301.0,0.014645]
[1771708395354,0.2354449,68308.0,68301.0,0.014645]
[1771708395556,0.014643,68309.0,68301.0,0.014645]
[1771708395757,0.23548216,68308.0,68301.0,0.014645]
[1771708396058,0.014643,68309.0,68302.0,0.014645]
[1771708396358,0.23548463,68308.0,68303.0,0.014644]
[1771708396558,0.014643,68310.0,68303.0,0.014644]
[1771708396860,0.23548412,68309.0,68303.0,0.014644]
[1771708397058,6.8e-07,68308.0,68303.0,0.014644]
[1771708397260,0.014642,68313.0,68305.0,0.014644]
[1771708398354,0.014642,68313.0,68305.0,0.029288]
[1771708398759,0.014642,68313.0,68306.0,0.014644]
[1771708399160,0.014642,68313.0,68305.0,0.014644]
[1771708399663,0.014642,68314.0,68306.0,0.014644]
[1771708399849,0.014642,68313.0,68306.0,0.014644]
[1771708400056,0.014642,68314.0,68305.0,0.014644]
[1771708400258,0.014643,68313.0,68305.0,0.014644]
[1771708401056,0.014643,68313.0,68307.0,0.00092]
[1771708401256,0.014643,68313.0,68305.0,0.014644]
[1771708402563,0.014643,68313.0,68306.0,0.014644]
[1771708402964,0.014643,68313.0,68305.0,0.014644]
[1771708403164,0.014643,68313.0,68306.0,0.014644]
[1771708403866,0.014643,68313.0,68305.0,0.014644]
[1771708404067,0.014643,68313.0,68307.0,0.0008]
[1771708404366,0.014643,68313.0,68305.0,0.014644]
[1771708404966,0.014643,68313.0,68306.0,0.014644]
[1771708405469,0.029286,68313.0,68305.0,0.014644]
[1771708405660,0.014643,68312.0,68305.0,0.014644]
[1771708406765,0.014643,68313.0,68306.0,0.014644]
[1771708406967,0.014641,68319.0,68311.0,0.029286]
[1771708407161,0.014641,68319.0,68311.0,0.014643]
[1771708408863,0.029282,68319.0,68311.0,0.014643]
[1771708409060,0.22719697,68318.0,68311.0,0.014643]
[1771708409260,0.22719697,68317.0,68311.0,0.014643]
[1771708409461,0.22719697,68316.0,68311.0,0.014643]
[1771708409661,0.014641,68318.0,68311.0,0.014643]
[1771708409862,0.21421765,68317.0,68311.0,0.014643]
[1771708410062,0.014641,68318.0,68311.0,0.015603]
[1771708410267,0.21420147,68317.0,68311.0,0.014643]
[1771708410569,0.21420147,68316.0,68311.0,0.014643]
[1771708410768,0.21420147,68315.0,68311.0,0.014643]
[1771708410974,0.21420147,68314.0,68311.0,0.014643]
[1771708411170,0.014641,68318.0,68311.0,0.014643]
[1771708411362,0.21418698,68317.0,68311.0,0.014643]
[1771708411562,0.014641,68319.0,68311.0,0.014643]
[1771708411759,0.21419607,68318.0,68311.0,0.014643]
[1771708411958,0.21419607,68317.0,68311.0,0.014643]
[1771708412167,0.014641,68319.0,68311.0,0.014643]
[1771708412368,0.21416193,68318.0,68311.0,0.014643]
[1771708412570,0.21416193,68317.0,68311.0,0.014643]
[1771708412864,0.01464,68323.0,68310.0,0.014643]
[1771708413071,0.014641,68319.0,68311.0,0.014643]
[1771708413259,0.2141603,68318.0,68311.0,0.014643]
[1771708413465,0.2141603,68317.0,68311.0,0.014643]
[1771708413669,0.014641,68319.0,68311.0,0.014643]
[1771708413869,0.21413545,68318.0,68311.0,0.014643]
[1771708414070,0.21413545,68317.0,68311.0,0.014643]
[1771708414272,0.014641,68318.0,68310.0,0.014643]
[1771708415774,0.014641,68319.0,68311.0,0.014643]
[1771708415971,0.21409819,68318.0,68311.0,0.014643]
[1771708416168,0.014641,68319.0,68311.0,0.014643]
[1771708416370,0.21408554,68318.0,68311.0,0.014643]
[1771708416570,0.014641,68319.0,68311.0,0.014643]
[1771708416771,0.21408554,68318.0,68311.0,0.014643]
[1771708416970,0.01464,68322.0,68315.0,0.014642]
[1771708417172,0.21408554,68321.0,68314.0,0.014642]
[1771708417372,0.21408554,68320.0,68314.0,0.014642]
[1771708417674,0.21408554,68319.0,68313.0,0.014642]
[1771708417878,0.21408554,68318.0,68314.0,0.014642]
[1771708418174,0.014641,68321.0,68313.0,0.014642]
[1771708418377,0.014641,68319.0,68313.0,0.014642]
[1771708418574,0.21406763,68318.0,68313.0,0.014642]
[1771708418874,0.014641,68322.0,68314.0,0.014642]
[1771708419175,0.014641,68320.0,68313.0,0.014642]
[1771708419376,0.014641,68318.0,68312.0,0.014643]
[1771708420178,0.014641,68319.0,68312.0,0.014643]
[1771708420476,0.01464,68323.0,68313.0,0.014642]
[1771708420679,0.014641,68321.0,68313.0,0.014642]
[1771708420879,0.014641,68320.0,68313.0,0.014642]
[1771708421081,0.014641,68319.0,68312.0,0.014643]
[1771708422480,0.029282,68321.0,68312.0,0.014643]
[1771708422681,0.014641,68321.0,68312.0,0.014643]
[1771708422881,0.014641,68321.0,68313.0,0.014642]
[1771708423084,0.014641,68320.0,68312.0,0.014643]
[1771708423577,0.014641,68319.0,68312.0,0.014643]
[1771708423883,0.014641,68320.0,68312.0,0.014643]
[1771708426488,0.014641,68321.0,68313.0,0.014642]
[1771708426794,0.014641,68320.0,68312.0,0.014643]
[1771708426994,0.014641,68321.0,68313.0,0.014642]
[1771708427487,0.014641,68320.0,68312.0,0.014643]
[1771708431993,0.01464,68325.0,68314.0,0.014642]
[1771708432295,0.22876193,68324.0,68316.0,0.014642]
[1771708432495,0.01464,68325.0,68317.0,0.014642]
[1771708432690,0.21413742,68324.0,68317.0,0.014642]
[1771708432895,0.01464,68325.0,68317.0,0.014642]
[1771708433087,0.21413735,68324.0,68317.0,0.014642]
[1771708433287,0.02928,68325.0,68317.0,0.014642]
[1771708433492,0.22879017,68324.0,68317.0,0.014642]
[1771708433702,0.01464,68324.0,68317.0,0.014642]
[1771708433999,0.01464,68324.0,68316.0,0.014642]
[1771708434898,0.02928,68325.0,68317.0,0.014641]
[1771708435100,0.014639,68329.0,68320.0,0.014641]